bitfinex/quotes_BTCUSD_20220103
["timestamp","ask_amount","ask_price","bid_price","bid_amount"]
[1641239025327,1.20998344,46615.0,46614.0,0.01557214]
[1641239025529,1.38720318,46615.0,46614.0,0.01557214]
[1641239025829,1.25298344,46615.0,46614.0,0.01557214]
[1641239026628,0.58298344,46615.0,46614.0,0.01557214]
[1641239027075,1.01509232,46615.0,46614.0,0.01557214]
[1641239027473,0.40509232,46615.0,46614.0,0.01557214]
[1641239030076,0.95509232,46615.0,46614.0,0.01557214]
[1641239030476,0.40509232,46615.0,46614.0,0.01557214]
[1641239034230,0.58303496,46615.0,46614.0,0.01557214]
[1641239034664,1.22661496,46615.0,46614.0,0.01557214]
[1641239034866,1.04867232,46615.0,46614.0,0.11557575]
[1641239035066,1.00567232,46615.0,46614.0,0.11557575]
[1641239035265,1.00567232,46615.0,46614.0,0.26836575]
[1641239035266,0.98841928,46615.0,46614.0,0.26836575]
[1641239035464,0.98841928,46615.0,46614.0,0.26959592]
[1641239035664,0.98841928,46615.0,46614.0,0.21836575]
[1641239035865,0.98841928,46615.0,46614.0,0.26836575]
[1641239036465,0.98829806,46615.0,46614.0,0.26836575]
[1641239036664,0.98829806,46615.0,46614.0,0.25244575]
[1641239036866,1.0055511,46615.0,46614.0,0.25244575]
[1641239037064,1.0055511,46615.0,46614.0,0.16557575]
[1641239037763,1.0055511,46615.0,46614.0,0.42977297]
[1641239038714,1.0055511,46615.0,46614.0,0.16557575]
[1641239039315,1.0055511,46615.0,46614.0,0.43208077]
[1641239041874,1.0055511,46615.0,46614.0,0.01557214]
[1641239044165,1.0485511,46615.0,46614.0,0.01557214]
[1641239046026,1.1485511,46615.0,46614.0,0.01557214]
[1641239047424,1.1485511,46615.0,46614.0,0.01057214]
[1641239047625,1.1985511,46615.0,46614.0,0.01057214]
[1641239047825,1.3058681,46615.0,46614.0,0.01057214]
[1641239049680,1.30514169,46615.0,46614.0,0.01057214]
[1641239055221,1.36533021,46615.0,46614.0,0.01057214]
[1641239056966,1.36654719,46615.0,46614.0,0.01057214]
[1641239057167,1.416203,46614.0,46603.0,0.008533]
[1641239057370,0.05367137,46607.0,46603.0,0.008533]
[1641239057566,0.23345604,46604.0,46603.0,0.008533]
[1641239057767,0.61246976,46604.0,46603.0,0.008533]
[1641239057966,0.93898375,46604.0,46603.0,0.00866161]
[1641239058370,0.93898375,46604.0,46603.0,0.00466161]
[1641239058671,0.99917227,46604.0,46603.0,0.00466161]
[1641239059466,0.67265828,46604.0,46603.0,0.00466161]
[1641239059868,0.67265828,46604.0,46603.0,0.00584351]
[1641239061229,0.77265828,46604.0,46603.0,0.00584351]
[1641239067685,0.43664456,46604.0,46603.0,0.00584351]
[1641239068919,0.33664456,46604.0,46603.0,0.00584351]
[1641239069118,0.29364456,46604.0,46603.0,0.00608653]
[1641239069315,0.27639152,46604.0,46603.0,0.00608653]
[1641239069716,0.06018852,46604.0,46603.0,0.00608653]
[1641239069917,0.07744156,46604.0,46603.0,0.00608653]
[1641239070319,0.00799598,46608.0,46605.0,0.053653]
[1641239070519,0.01725304,46606.0,46605.0,0.157306]
[1641239070718,0.00799598,46608.0,46605.0,0.157306]
[1641239071321,0.00799598,46608.0,46607.0,0.26289235]
[1641239071524,0.00799598,46608.0,46607.0,0.31289235]
[1641239072173,0.750883,46615.0,46607.0,0.31289235]
[1641239072371,0.350467,46614.0,46610.0,0.053651]
[1641239072572,0.00799592,46612.0,46610.0,0.053651]
[1641239072771,0.210468,46611.0,46610.0,0.053651]
[1641239072972,0.210468,46611.0,46610.0,0.103651]
[1641239073373,0.22772104,46611.0,46610.0,0.103651]
[1641239073773,0.210468,46611.0,46610.0,0.103651]
[1641239074772,0.01725304,46611.0,46610.0,0.157301]
[1641239075174,0.05365,46612.0,46610.0,0.157301]
[1641239079023,0.05365,46612.0,46610.0,0.107301]
[1641239079867,0.05365,46612.0,46611.0,0.00011523]
[1641239080065,0.404117,46612.0,46611.0,0.00023046]
[1641239085429,0.404117,46612.0,46611.0,0.00141216]
[1641239085929,0.454117,46612.0,46611.0,0.00141216]
[1641239092217,0.404117,46612.0,46611.0,0.00141216]
[1641239097278,0.40314725,46612.0,46611.0,0.00141216]
[1641239098529,0.85174814,46612.0,46611.0,0.00141216]
[1641239099028,0.86900118,46612.0,46611.0,0.00141216]
[1641239099429,0.71900118,46612.0,46611.0,0.00141216]
[1641239099629,0.86900118,46612.0,46611.0,0.00141216]
[1641239103168,0.42040029,46612.0,46611.0,0.00141216]
[1641239103571,0.72042396,46612.0,46611.0,0.00141216]
[1641239104172,0.77487914,46612.0,46611.0,0.00141216]
[1641239104373,0.87479887,46612.0,46611.0,0.00141216]
[1641239104572,0.91779887,46612.0,46611.0,0.00141216]
[1641239105272,1.32779887,46612.0,46611.0,0.00141216]
[1641239105728,0.91779887,46612.0,46611.0,0.00141216]
[1641239105929,1.5724752,46612.0,46611.0,0.00141216]
[1641239108331,1.26807662,46612.0,46611.0,0.00141216]
[1641239108730,1.11340029,46612.0,46611.0,0.00141216]
[1641239109585,0.96340029,46612.0,46611.0,0.00141216]
[1641239109785,1.11340029,46612.0,46611.0,0.05556632]
[1641239111682,1.07040029,46612.0,46611.0,0.05556632]
[1641239112085,0.57040029,46612.0,46611.0,0.05556632]
[1641239113728,0.60224649,46612.0,46611.0,0.05556632]
[1641239114332,0.45224649,46612.0,46611.0,0.05556632]
[1641239114533,0.43499345,46612.0,46611.0,0.05556632]
[1641239115031,0.45224649,46612.0,46611.0,0.05556632]
[1641239115633,0.42040029,46612.0,46611.0,0.05556632]
[1641239118384,0.64358,46613.0,46611.0,0.33724774]
[1641239118583,0.64358,46613.0,46612.0,0.4341457]
[1641239119084,0.64358,46613.0,46612.0,0.53829986]
[1641239120746,0.64358,46613.0,46612.0,0.53772723]
[1641239120947,0.64358,46613.0,46612.0,0.55023688]
[1641239121241,0.64358,46613.0,46612.0,0.55152368]
[1641239122044,0.64358,46613.0,46612.0,0.14487843]
[1641239122943,0.64358,46613.0,46612.0,0.05415416]
[1641239123144,0.994047,46613.0,46612.0,0.05415416]
[1641239124469,0.994047,46613.0,46612.0,0.02707708]
[1641239124871,0.994047,46613.0,46612.0,0.05091881]
[1641239125070,0.994047,46613.0,46612.0,0.02546371]
[1641239125469,0.994047,46613.0,46612.0,0.05091881]
[1641239125670,0.994047,46613.0,46612.0,0.10091881]
[1641239129039,0.994047,46613.0,46612.0,0.10103278]
[1641239129840,0.994047,46613.0,46612.0,0.05103278]
[1641239131743,0.994047,46613.0,46612.0,0.10103278]
[1641239133785,0.994047,46613.0,46612.0,0.09515705]
[1641239135834,0.994047,46613.0,46612.0,0.05103278]
[1641239136435,1.047696,46613.0,46612.0,0.05103278]
[1641239138034,1.047696,46613.0,46612.0,0.02556907]
[1641239138433,1.047696,46613.0,46612.0,0.04219514]
[1641239138634,1.047696,46613.0,46612.0,0.02174004]
[1641239138836,1.047696,46613.0,46612.0,0.04219514]
[1641239139389,0.994047,46613.0,46612.0,0.04219514]
[1641239140879,0.994047,46613.0,46612.0,0.09219514]
[1641239142684,0.64358,46613.0,46612.0,0.37855393]
[1641239146876,0.64358,46613.0,46612.0,0.09219514]
[1641239147268,0.64358,46613.0,46612.0,0.08719514]
[1641239149070,0.64358,46613.0,46612.0,0.37013947]
[1641239149869,0.64358,46613.0,46612.0,0.08719514]
[1641239150174,0.64358,46613.0,46612.0,0.04097571]
[1641239150613,0.64358,46613.0,46612.0,0.0204551]
[1641239150812,0.64358,46613.0,46612.0,0.04097571]
[1641239151014,0.64358,46613.0,46612.0,0.04107932]
[1641239151411,0.64358,46613.0,46612.0,0.04118293]
[1641239159229,0.994047,46613.0,46612.0,0.04118293]
[1641239163389,0.64358,46613.0,46612.0,0.04118293]
[1641239165731,0.69358,46613.0,46612.0,0.04118293]
[1641239171885,0.64358,46613.0,46612.0,0.04118293]
[1641239172087,1.044047,46613.0,46612.0,0.04118293]
[1641239172286,0.69358,46613.0,46612.0,0.04118293]
[1641239173141,1.044047,46613.0,46612.0,0.04118293]
[1641239174037,1.32568147,46613.0,46612.0,0.04118293]
[1641239174439,1.38575606,46613.0,46612.0,0.04118293]
[1641239176540,1.32568147,46613.0,46612.0,0.04118293]
[1641239178290,1.06130004,46613.0,46612.0,0.04118293]
[1641239178492,1.36936443,46613.0,46612.0,0.04118293]
[1641239178692,1.06130004,46613.0,46612.0,0.04118293]
[1641239179092,1.36076373,46613.0,46612.0,0.04118293]
[1641239179692,1.06130004,46613.0,46612.0,0.04118293]
[1641239181539,1.84998616,46613.0,46612.0,0.04118293]
[1641239181939,1.83273312,46613.0,46612.0,0.04118293]
[1641239183044,1.044047,46613.0,46612.0,0.04118293]
[1641239183239,1.06130004,46613.0,46612.0,0.04118293]
[1641239186685,1.05630004,46613.0,46612.0,0.04118293]
[1641239187977,1.89498616,46613.0,46612.0,0.04118293]
[1641239190036,1.11621864,46613.0,46612.0,0.04118293]
[1641239191138,1.11621864,46613.0,46612.0,0.05168293]
[1641239193188,1.85031049,46613.0,46612.0,0.05168293]
[1641239193588,1.83305745,46613.0,46612.0,0.05168293]
[1641239194891,1.01130004,46613.0,46612.0,0.05168293]
[1641239198727,1.85068398,46613.0,46612.0,0.05168293]
[1641239199128,1.90068398,46613.0,46612.0,0.05168293]
[1641239199584,1.18821948,46613.0,46612.0,0.05168293]
[1641239202787,1.60821948,46613.0,46612.0,0.05168293]
[1641239203637,1.60821948,46613.0,46612.0,0.08168293]
[1641239206036,1.55821948,46613.0,46612.0,0.08168293]
[1641239207377,1.60821948,46613.0,46612.0,0.08168293]
[1641239209980,1.60821948,46613.0,46612.0,0.08015579]
[1641239210379,1.60821948,46613.0,46612.0,0.06112422]
[1641239210636,1.60821948,46613.0,46612.0,0.08015579]
[1641239215078,1.60821948,46613.0,46612.0,0.06497059]
[1641239215279,1.60821948,46613.0,46612.0,0.05963518]
[1641239215480,1.60821948,46613.0,46612.0,0.06497059]
[1641239216180,1.60828391,46613.0,46612.0,0.06506478]
[1641239224495,1.55828391,46613.0,46612.0,0.06506478]
[1641239225097,1.19056387,46613.0,46612.0,0.44241165]
[1641239225733,0.77056387,46613.0,46612.0,0.4437107]
[1641239225933,0.77056387,46613.0,46612.0,0.7941777]
[1641239226735,0.64364443,46613.0,46612.0,0.7941777]
[1641239227531,0.64364443,46613.0,46612.0,0.4437107]
[1641239228934,0.64364443,46613.0,46612.0,0.44241165]
[1641239232501,0.64364443,46613.0,46612.0,0.43425474]
[1641239238405,0.64364443,46613.0,46612.0,0.41824311]
[1641239239408,0.64364443,46613.0,46612.0,0.15806724]
[1641239239606,0.64364443,46613.0,46612.0,0.42065065]
[1641239240010,0.64271239,46613.0,46612.0,0.42065065]
[1641239240631,0.64271239,46613.0,46612.0,0.42150221]
[1641239242433,0.64271239,46613.0,46612.0,3.08928449]
[1641239243434,0.64271239,46613.0,46612.0,3.13228449]
[1641239243636,0.64271239,46613.0,46612.0,4.37049353]
[1641239243835,0.0001,46618.0,46612.0,4.72049353]
[1641239244035,0.0001,46618.0,46617.0,1.47466205]
[1641239244235,0.0001,46618.0,46617.0,1.94442905]
[1641239244498,0.0001,46618.0,46617.0,2.06879603]
[1641239246895,0.0001,46618.0,46617.0,0.93179603]
[1641239247497,0.0001,46618.0,46617.0,2.06879603]
[1641239247699,0.0001,46618.0,46617.0,0.93196056]
[1641239247901,0.0001,46618.0,46617.0,0.75566056]
[1641239248942,0.0001,46618.0,46617.0,1.89266056]
[1641239249343,0.0001,46618.0,46617.0,0.75566056]
[1641239249743,0.0001,46618.0,46617.0,0.37499851]
[1641239249942,0.0001,46618.0,46617.0,0.02453151]
[1641239250844,0.0501,46618.0,46617.0,0.02453151]
[1641239252002,0.0001,46618.0,46617.0,0.02453151]
[1641239256451,0.0001,46618.0,46617.0,0.02574483]
[1641239257656,0.72180385,46618.0,46617.0,0.02574483]
[1641239257854,0.44001494,46618.0,46617.0,0.02574483]
[1641239258054,0.49001494,46618.0,46617.0,0.02574483]
[1641239258257,0.44477171,46618.0,46617.0,0.02574483]
[1641239258457,0.56477171,46618.0,46617.0,0.02574483]
[1641239259610,0.62504645,46618.0,46617.0,0.02574483]
[1641239259806,0.94316318,46618.0,46617.0,0.02574483]
[1641239260407,0.99316318,46618.0,46617.0,0.02574483]
[1641239260608,1.09316318,46618.0,46617.0,0.02574483]
[1641239261013,1.62316318,46618.0,46617.0,0.01602882]
[1641239261208,1.62316318,46618.0,46617.0,0.00016453]
[1641239261708,1.62316318,46618.0,46617.0,0.01602882]
[1641239264148,1.50316318,46618.0,46617.0,0.01602882]
[1641239264346,1.50316318,46618.0,46617.0,0.00692006]
[1641239266549,1.50316318,46618.0,46616.0,0.00016453]
[1641239266751,0.56209941,46617.0,46616.0,0.00016453]
[1641239267004,0.360468,46617.0,46616.0,0.00016453]
[1641239267205,0.66065642,46617.0,46616.0,0.00016453]
[1641239268105,0.65065642,46617.0,46616.0,0.00016453]
[1641239268306,0.71093116,46617.0,46616.0,0.00016453]
[1641239269302,0.71093116,46617.0,46616.0,0.00031494]
[1641239270106,0.41074274,46617.0,46616.0,0.00031494]
[1641239270950,0.70996628,46617.0,46616.0,0.00031494]
[1641239271748,0.41074274,46617.0,46616.0,0.00031494]
[1641239272048,0.41074274,46617.0,46616.0,0.007235]
[1641239273052,0.71094908,46617.0,46616.0,0.007235]
[1641239273955,0.41074274,46617.0,46616.0,0.007235]
[1641239274705,0.7114766,46617.0,46616.0,0.007235]
[1641239275702,0.8414766,46617.0,46616.0,0.002205]
[1641239275904,0.09700914,46614.0,46612.0,0.0405]
[1641239276102,0.79816099,46613.0,46612.0,0.0405]
[1641239276302,0.90843573,46613.0,46612.0,0.0405]
[1641239276504,1.00843573,46613.0,46612.0,0.0405]
[1641239276702,1.12013507,46613.0,46612.0,0.0405]
[1641239277902,1.05986033,46613.0,46612.0,0.0405]
[1641239278747,0.10732705,46609.0,46603.0,0.01264849]
[1641239278947,0.053665,46607.0,46603.0,0.00264849]
[1641239279149,0.404132,46606.0,46603.0,0.00264849]
[1641239279348,0.454132,46606.0,46603.0,0.00264849]
[1641239279947,0.454132,46606.0,46604.0,0.00013182]
[1641239280151,0.45538689,46606.0,46604.0,0.00013182]
[1641239280349,0.053665,46605.0,46604.0,0.00013182]
[1641239280548,0.264133,46605.0,46604.0,0.00013182]
[1641239287540,0.314133,46605.0,46604.0,0.00013182]
[1641239287738,0.69894234,46605.0,46604.0,0.00013182]
[1641239287940,0.80020679,46605.0,46603.0,0.008533]
[1641239288141,0.789279,46604.0,46603.0,0.008533]
[1641239288338,0.789279,46604.0,46585.0,0.26753339]
[1641239288539,0.210468,46601.0,46589.0,0.23732306]
[1641239289039,0.40609714,46601.0,46600.0,0.018534]
[1641239289238,0.260468,46601.0,46600.0,0.018534]
[1641239290501,0.56606648,46601.0,46600.0,0.018534]
[1641239290702,0.56606648,46601.0,46600.0,0.0186452]
[1641239291001,0.260468,46601.0,46600.0,0.01645338]
[1641239292000,0.310468,46601.0,46600.0,0.01645338]
[1641239292202,0.61228727,46601.0,46600.0,0.01645338]
[1641239293841,0.71228727,46601.0,46600.0,0.01645338]
[1641239294647,0.85649624,46601.0,46600.0,0.01645338]
[1641239294847,0.85649624,46601.0,46586.0,0.00798707]
[1641239294848,0.053681,46593.0,46586.0,0.00798707]
[1641239295145,0.05497766,46590.0,46586.0,0.00798707]
[1641239295443,0.18943418,46590.0,46586.0,0.00798707]
[1641239295643,0.350467,46589.0,46586.0,0.00798707]
[1641239296342,0.350467,46589.0,46586.0,0.008533]
[1641239296542,0.053682,46588.0,46586.0,0.008533]
[1641239296746,0.210468,46587.0,46586.0,0.008533]
[1641239296986,0.260468,46587.0,46586.0,0.008533]
[1641239297884,0.310468,46587.0,46586.0,0.008533]
[1641239299387,0.21472731,46588.0,46586.0,0.008533]
[1641239299388,0.053682,46588.0,46586.0,0.008533]
[1641239299588,0.053669,46591.0,46586.0,0.008533]
[1641239300288,0.05,46593.0,46586.0,0.32127214]
[1641239300489,0.053668,46597.0,46587.0,0.05366562]
[1641239300754,0.350467,46596.0,46586.0,0.32127214]
[1641239300958,0.350467,46596.0,46586.0,0.008533]
[1641239301152,0.350467,46596.0,46587.0,0.00010989]
[1641239302053,0.10735,46591.0,46587.0,0.00010989]
[1641239302254,0.210468,46590.0,46587.0,0.00010989]
[1641239302455,0.15735,46591.0,46587.0,0.00010989]
[1641239302758,0.103675,46591.0,46587.0,0.00010989]
[1641239302956,0.053675,46591.0,46587.0,0.00010989]
[1641239303254,0.107349,46591.0,46587.0,0.00010989]
[1641239303455,0.103675,46591.0,46587.0,0.00010989]
[1641239303655,0.053675,46591.0,46587.0,0.00010989]
[1641239304504,0.053675,46589.0,46587.0,0.00010989]
[1641239306009,0.107352,46589.0,46587.0,0.00010989]
[1641239307805,0.3016553,46588.0,46587.0,0.00010989]
[1641239308007,0.7021223,46588.0,46587.0,0.00010989]
[1641239308239,0.83341348,46588.0,46587.0,0.00010989]
[1641239308442,0.88341348,46588.0,46587.0,0.00010989]
[1641239308640,0.98341348,46588.0,46587.0,0.00010989]
[1641239308843,1.16920908,46588.0,46587.0,0.00010989]
[1641239309441,1.65920908,46588.0,46587.0,0.00010989]
[1641239310944,1.75815008,46588.0,46587.0,0.00010989]
[1641239313799,1.35755378,46588.0,46587.0,0.00010989]
[1641239314000,1.17175818,46588.0,46587.0,0.00010989]
[1641239315401,1.47134777,46588.0,46587.0,0.00010989]
[1641239316345,1.51434777,46588.0,46587.0,0.00010989]
[1641239316545,2.15829777,46588.0,46587.0,0.00010989]
[1641239319893,0.13,46587.0,46586.0,0.008533]
[1641239320094,1.91217729,46587.0,46586.0,0.008533]
[1641239320296,2.01716511,46587.0,46586.0,0.008533]
[1641239320495,2.16716511,46587.0,46586.0,0.008533]
[1641239320895,2.20270239,46587.0,46586.0,0.008533]
[1641239321198,2.03716511,46587.0,46586.0,0.008533]
[1641239322800,2.03716511,46587.0,46586.0,0.00862583]
[1641239328507,2.03716511,46587.0,46581.0,0.002]
[1641239328508,0.00129243,46582.0,46581.0,0.002]
[1641239328701,1.36694301,46582.0,46581.0,0.002]
[1641239328902,1.65484301,46582.0,46581.0,0.002]
[1641239329105,1.41484301,46582.0,46581.0,0.002]
[1641239329401,1.71756517,46582.0,46581.0,0.002]
[1641239330102,1.71756517,46582.0,46581.0,0.010533]
[1641239330652,1.71756517,46582.0,46578.0,0.008533]
[1641239330853,0.210468,46579.0,46578.0,0.008533]
[1641239331053,1.05509448,46579.0,46578.0,0.017066]
[1641239331452,1.15509448,46579.0,46578.0,0.017066]
[1641239332857,1.47870612,46579.0,46578.0,0.008533]
[1641239333155,1.54744658,46579.0,46578.0,0.008533]
[1641239333455,0.433712,46572.0,46571.0,0.002]
[1641239333655,1.06469825,46572.0,46571.0,0.002]
[1641239333856,1.11469825,46572.0,46571.0,0.002]
[1641239334056,1.11469825,46572.0,46571.0,0.010533]
[1641239334918,1.61469825,46572.0,46571.0,0.010533]
[1641239335720,0.11,46571.0,46557.0,0.42796881]
[1641239335920,0.053718,46565.0,46557.0,0.42796881]
[1641239336119,0.404185,46564.0,46557.0,0.42796881]
[1641239336320,0.454185,46564.0,46557.0,0.42]
[1641239336521,0.554185,46564.0,46557.0,0.42]
[1641239336718,0.500467,46564.0,46557.0,0.42]
[1641239337122,0.053715,46563.0,46557.0,0.42]
[1641239337321,0.210468,46562.0,46557.0,0.42]
[1641239337623,0.260468,46562.0,46554.0,0.0049]
[1641239337822,0.6127374,46562.0,46561.0,0.010533]
[1641239338020,0.71397559,46562.0,46561.0,0.010533]
[1641239338251,0.84397559,46562.0,46549.0,0.00022]
[1641239338446,0.10745114,46556.0,46550.0,0.25182824]
[1641239338646,0.01191625,46552.0,46549.0,0.00022]
[1641239339649,0.11936525,46552.0,46551.0,0.2361739]
[1641239339849,0.06564125,46552.0,46551.0,0.2361739]
[1641239340048,0.01191625,46552.0,46551.0,0.2361739]
[1641239342128,0.01191625,46552.0,46551.0,0.008533]
[1641239342129,0.00691625,46552.0,46551.0,0.008533]
[1641239344226,0.00691625,46552.0,46551.0,0.00864674]
[1641239351601,0.00562403,46552.0,46551.0,0.00864674]
[1641239359808,0.00562403,46552.0,46551.0,0.81394746]
[1641239360012,4.03e-06,46552.0,46551.0,0.91394746]
[1641239360208,0.0079691,46556.0,46551.0,0.91394746]
[1641239360209,0.053701,46568.0,46560.0,0.44588729]
[1641239360412,0.5,46567.0,46564.0,3.23453787]
[1641239360661,0.5,46567.0,46565.0,0.393467]
[1641239360858,0.053703,46569.0,46565.0,0.043]
[1641239361457,0.053703,46568.0,46565.0,0.043]
[1641239361861,0.103703,46568.0,46565.0,0.043]
[1641239362057,0.103703,46568.0,46565.0,0.30546371]
[1641239363063,0.103703,46568.0,46565.0,0.043]
[1641239363259,0.103703,46568.0,46565.0,0.30396269]
[1641239363660,0.05,46568.0,46565.0,0.30396269]
[1641239363861,0.2,46570.0,46565.0,0.30396269]
[1641239364262,0.1,46570.0,46565.0,0.30396269]
[1641239364511,0.207406,46571.0,46565.0,0.30396269]
[1641239364714,0.053702,46568.0,46565.0,0.30396269]
[1641239365111,0.053702,46568.0,46565.0,0.30539577]
[1641239365313,0.053702,46568.0,46564.0,3.52305997]
[1641239365512,0.053702,46568.0,46565.0,0.26021665]
[1641239365714,0.053702,46568.0,46566.0,0.00015602]
[1641239366513,0.103702,46568.0,46566.0,0.00015602]
[1641239367114,0.84115974,46567.0,46566.0,0.00015602]
[1641239369645,1.19162674,46567.0,46566.0,0.00015602]
[1641239370048,1.34162674,46567.0,46566.0,0.00015602]
[1641239370250,1.29533274,46567.0,46566.0,0.00015602]
[1641239370448,0.43797509,46567.0,46566.0,0.00015602]
[1641239370647,0.08750809,46567.0,46566.0,0.00015602]
[1641239370846,0.103702,46568.0,46566.0,0.00015602]
[1641239371050,0.84184516,46567.0,46566.0,0.00015602]
[1641239371249,1.60329581,46567.0,46566.0,0.00015602]
[1641239371448,1.31911021,46567.0,46566.0,0.00015602]
[1641239371646,1.36911021,46567.0,46566.0,0.00015602]
[1641239371919,0.52726505,46567.0,46566.0,0.00015602]
[1641239372111,0.94391454,46567.0,46566.0,0.00015602]
[1641239372910,1.44391454,46567.0,46566.0,0.00015602]
[1641239373309,1.43891454,46567.0,46566.0,0.00015602]
[1641239373909,1.41711649,46567.0,46566.0,0.00015602]
[1641239374111,1.08696822,46567.0,46566.0,0.00015602]
[1641239374712,1.38830524,46567.0,46566.0,0.00015602]
[1641239374913,1.08696822,46567.0,46566.0,0.00015602]
[1641239375212,1.67983007,46567.0,46566.0,0.00015602]
[1641239375855,1.37786061,46567.0,46566.0,0.00015602]
[1641239379443,1.42086061,46567.0,46566.0,0.00015602]
[1641239379835,1.42086061,46567.0,46566.0,0.00868902]
[1641239380236,1.42086061,46567.0,46565.0,0.00868902]
[1641239380436,1.01537155,46566.0,46565.0,0.00868902]
[1641239380636,1.15837155,46566.0,46565.0,0.00868902]
[1641239381239,1.15837155,46566.0,46565.0,0.01722202]
[1641239381639,1.24487277,46566.0,46565.0,0.01722202]
[1641239383151,0.93996922,46566.0,46565.0,0.01722202]
[1641239383552,1.23370794,46566.0,46565.0,0.01722202]
[1641239383954,0.05371896,46560.0,46549.0,0.00022]
[1641239384156,0.053719,46555.0,46549.0,0.00022]
[1641239384453,0.053719,46555.0,46550.0,0.42]
[1641239384655,0.103719,46555.0,46550.0,0.72842129]
[1641239384852,0.103719,46555.0,46552.0,0.28568212]
[1641239385356,1.77906418,46553.0,46552.0,0.28568212]
[1641239385552,1.82906418,46553.0,46552.0,0.28568212]
[1641239385752,1.78278318,46553.0,46552.0,0.28568212]
[1641239385955,0.84074927,46558.0,46552.0,0.50112881]
[1641239386151,0.84074927,46558.0,46554.0,0.16110834]
[1641239386352,0.84074927,46558.0,46555.0,0.24481254]
[1641239386652,0.84074927,46558.0,46557.0,0.38869429]
[1641239386920,0.84074927,46558.0,46557.0,0.44239529]
[1641239387107,0.84074927,46558.0,46557.0,1.14219147]
[1641239387307,0.84074927,46558.0,46557.0,1.49265847]
[1641239387707,0.0537,46567.0,46557.0,1.03265847]
[1641239387908,0.0537,46567.0,46565.0,0.31337391]
[1641239389910,0.1037,46567.0,46565.0,0.31337391]
[1641239391555,0.05,46566.0,46562.0,0.05370077]
[1641239391756,0.053703,46566.0,46560.0,0.05370214]
[1641239392655,0.053703,46566.0,46561.0,0.23094228]
[1641239392853,0.053703,46566.0,46561.0,0.32923355]
[1641239393055,0.053703,46566.0,46561.0,0.56245414]
[1641239393855,0.107405,46566.0,46561.0,0.56245414]
[1641239394054,0.157405,46566.0,46561.0,0.32923355]
[1641239395506,0.053703,46565.0,46561.0,0.32923355]
[1641239395706,0.053703,46564.0,46561.0,0.32923355]
[1641239395908,0.107407,46567.0,46558.0,0.25545825]
[1641239396106,0.05,46566.0,46561.0,0.008534]
[1641239397308,0.053704,46564.0,46561.0,0.008534]
[1641239398163,0.157413,46566.0,46561.0,0.008534]
[1641239398361,0.053708,46564.0,46561.0,0.008534]
[1641239398559,0.053702,46566.0,46561.0,0.008534]
[1641239399360,0.107405,46565.0,46561.0,0.008534]
[1641239399561,0.161109,46565.0,46561.0,0.008534]
[1641239399964,0.107405,46565.0,46561.0,0.008534]
[1641239400563,0.053704,46564.0,46561.0,0.008534]
[1641239400764,0.053702,46564.0,46561.0,0.008534]
[1641239401767,0.107405,46564.0,46561.0,0.008534]
[1641239402013,0.157405,46564.0,46561.0,0.008534]
[1641239404412,0.053705,46563.0,46561.0,0.008534]
[1641239404915,0.053705,46563.0,46561.0,0.003534]
[1641239406870,0.053705,46563.0,46560.0,0.007067]
[1641239407170,0.103705,46563.0,46560.0,0.007067]
[1641239407368,0.350467,46562.0,46560.0,0.007067]
[1641239407969,0.350467,46562.0,46560.0,0.0156]
[1641239408170,0.103705,46563.0,46560.0,0.0156]
[1641239411518,0.350467,46562.0,46560.0,0.0156]
[1641239412618,0.103705,46563.0,46560.0,0.0156]
[1641239412816,0.15741386,46563.0,46560.0,0.0156]
[1641239415258,0.053705,46563.0,46560.0,0.0156]
[1641239415455,0.157405,46564.0,46561.0,0.350467]
[1641239415657,0.157405,46564.0,46562.0,0.2827904]
[1641239415857,0.107396,46565.0,46563.0,0.350467]
[1641239416055,0.408698,46569.0,46565.0,0.25753121]
[1641239416056,0.403898,46569.0,46565.0,0.25753121]
[1641239416256,0.107398,46569.0,46565.0,0.25753121]
[1641239416455,0.107396,46566.0,46565.0,0.25753121]
[1641239416656,0.107396,46566.0,46565.0,0.28962067]
[1641239416917,0.053699,46565.0,46561.0,0.30860463]
[1641239417212,0.053699,46564.0,46561.0,0.30860463]
[1641239417412,0.053699,46564.0,46562.0,0.350467]
[1641239417611,0.053699,46564.0,46563.0,0.2816395]
[1641239417815,0.211097,46565.0,46563.0,0.2816395]
[1641239418211,0.264797,46565.0,46563.0,0.2816395]
[1641239418412,2.4611225,46565.0,46563.0,0.2816395]
[1641239418812,0.264797,46565.0,46563.0,0.2816395]
[1641239420648,0.264797,46565.0,46561.0,0.3293927]
[1641239420849,0.107402,46564.0,46562.0,0.26836975]
[1641239421652,0.107402,46564.0,46561.0,0.00026456]
[1641239422452,0.107402,46564.0,46562.0,0.350467]
[1641239422652,0.107402,46564.0,46563.0,0.2729352]
[1641239422851,0.053701,46564.0,46563.0,0.2729352]
[1641239424418,0.103701,46564.0,46561.0,0.00026456]
[1641239425218,0.15740672,46564.0,46561.0,0.00026456]
[1641239427117,0.14881572,46564.0,46561.0,0.00026456]
[1641239428372,0.09511,46564.0,46561.0,0.00026456]
[1641239429270,0.01511,46564.0,46561.0,0.00026456]
[1641239429472,0.0688156,46564.0,46561.0,0.00026456]
[1641239431270,0.1188156,46564.0,46561.0,0.00026456]
[1641239433911,0.350467,46563.0,46561.0,0.00026456]
[1641239434113,0.450467,46563.0,46561.0,0.00026456]
[1641239434313,0.450467,46563.0,46561.0,0.00013228]
[1641239434613,1.227188,46562.0,46561.0,0.00013228]
[1641239434812,0.537188,46562.0,46560.0,0.008533]
[1641239435013,0.350467,46561.0,46560.0,0.008533]
[1641239435213,0.743467,46561.0,46560.0,3.3e-05]
[1641239435411,0.053728,46553.0,46547.0,0.00022]
[1641239435654,0.053728,46553.0,46549.0,0.00022]
[1641239435856,0.053726,46552.0,46549.0,0.00022]
[1641239436557,0.053726,46552.0,46544.0,0.7268821]
[1641239436558,0.0089,46547.0,46544.0,0.4789021]
[1641239436756,1.130467,46545.0,46541.0,0.00222]
[1641239436956,0.01032226,46535.0,46534.0,0.00022]
[1641239437157,0.40378926,46535.0,46534.0,0.00022]
[1641239437355,0.45378926,46535.0,46534.0,0.00022]
[1641239437561,0.6588109,46535.0,46534.0,0.00022]
[1641239437957,0.5088109,46535.0,46534.0,0.00022]
[1641239438155,0.06032226,46535.0,46534.0,0.00022]
[1641239438360,0.01032226,46535.0,46534.0,0.00022]
[1641239438556,0.61742587,46535.0,46534.0,0.00022]
[1641239438955,0.96789287,46535.0,46534.0,0.00022]
[1641239439157,0.61742587,46535.0,46534.0,0.00022]